Cogmind - Beta 11 X8 @@@ ROGUE MODE // 2021.12.04 @ 16:24:24 Player: ZEROAFFEX Result: Destroyed by Striker with Compact Linear Accelerator Performance ------------- Evolutions (6) 3000 Regions Visited (17) 3400 Robots Destroyed (209) 1045 Value Destroyed (7603) 7603 Prototype IDs (11) 220 Alien Tech Used (0) 0 Bonus (1312) 1312 TOTAL SCORE: 16580 Bonus ------- High Alert Combat Kills 96 Follower Combat Kills 466 Met Warlord at Base 500 MAIN.C Attacked Warlord 500 Friendly Fire -250 Cogmind --------- Core Integrity 0/1150 Matter 245/300 Energy 98/100 System Corruption 1% Temperature Cool (9) Movement Core (50) Location -4/Warlord Parts ------- > --- POWER (1) -------- (None) > --- PROPULSION (4) --- (None) > --- UTILITY (10) ----- (None) > --- WEAPON (4) ------- (None) > --- INVENTORY (5) ---- Matter Compressor (250) Improved Armor Integrity Analyzer Improved Armor Integrity Analyzer Variable Charge Gun Variable Charge Gun Peak State ------------ > --- POWER ------------ F-cell Engine > --- PROPULSION ------- Heavy Treads Enhanced Flexi-carbon Leg Enhanced Flexi-carbon Leg > --- UTILITY ---------- Advanced Cooling System Advanced Cooling System Advanced Coolant Injector Huge Storage Unit Enhanced Optical Array Advanced Target Analyzer Advanced Armor Integrity Analyzer Makeshift Cloaking Device Improved Medium Armor Plating Layered Medium Armor Plating > --- WEAPON ----------- Plasma Rifle Vortex Rail Vortex Rail Matter Neutralizer > --- INVENTORY -------- Neutrino Core Light Antimatter Reactor Advanced Coolant Injector Matter Compressor Advanced Target Analyzer Improved Armor Integrity Analyzer Improved Armor Integrity Analyzer Transmission Jammer Improved Transmission Jammer Makeshift Cloaking Device Hardened Medium Armor Plating Improved Medium Armor Plating Wave Gun Variable Charge Gun Variable Charge Gun Variable Charge Gun Variable Charge Gun HERF Cannon HERF Cannon Vortex Cannon Improved Grenade Launcher Remote Datajack Heavy Mace Heavy Pick Heavy Pick [Rating: 128] Favorites ----------- Power F-cell Engine Engine F-cell Engine Power Core Enhanced Nuclear Core Reactor Light Antimatter Reactor Propulsion Armored Treads Treads Armored Treads Leg Enhanced Flexi-carbon Leg Wheel Armored Huge Wheel Utility Transmission Jammer Device Transmission Jammer Storage Huge Storage Unit Processor Advanced Armor Integrity Analyzer Hackware Hacking Suite Protection Hardened Medium Armor Plating Weapon Heavy Laser Energy Gun Heavy Laser Energy Cannon Matter Neutralizer Ballistic Gun Gauss Rifle Ballistic Cannon Gauss Cannon Launcher Mini Grenade Launcher Special Weapon Remote Datajack Impact Weapon Heavy Mace Special Melee Weapon Improved Datajack Build | -11 -10 -10 -9 -8 -7 -7 -7 -6 -6 -6 -5 -5 -5 -4 -4 -4 -4 ------- Run | Scr Mat Min Mat Mat Fac Low Low Fac Low Low Fac Upp Upp Fac Upp Upp War Slots Evolved 12 | . . . 2 2 2 . . 2 . . 2 . . 2 . . . Power . | . . . . . . . . . . . . . . . . . . Propulsion 2 | . . . . . 2 . . . . . . . . . . . . Utility 8 | . . . 1 1 . . . 2 . . 2 . . 2 . . . Weapon 2 | . . . 1 1 . . . . . . . . . . . . . Parts Attached 268 | 9 11 1 28 24 55 4 . 38 4 6 4 8 . 39 8 15 14 Power 17 | 1 2 . 4 2 3 . . 2 . . . . . 1 1 . 1 Engine 15 | 1 2 . 4 2 2 . . 2 . . . . . 1 1 . . Core 1 | . . . . . 1 . . . . . . . . . . . . Reactor 1 | . . . . . . . . . . . . . . . . . 1 Propulsion 42 | 4 2 . 4 3 12 . . 8 . . . 1 . 5 1 . 2 Treads 23 | . . . 2 1 8 . . 6 . . . . . 5 1 . . Leg 2 | . . . . . . . . . . . . . . . . . 2 Wheel 17 | 4 2 . 2 2 4 . . 2 . . . 1 . . . . . Hover . | . . . . . . . . . . . . . . . . . . Flight . | . . . . . . . . . . . . . . . . . . Utility 103 | 2 3 1 6 6 12 2 . 18 3 1 4 5 . 22 3 8 7 Device 57 | . 1 1 1 3 4 . . 11 1 . 3 2 . 19 3 7 1 Storage 12 | 1 2 . 1 1 4 . . 3 . . . . . . . . . Processor 9 | 1 . . . . . 1 . 2 . . . . . 3 . 1 1 Hackware 1 | . . . . . . . . . . . 1 . . . . . . Protection 24 | . . . 4 2 4 1 . 2 2 1 . 3 . . . . 5 Artifact . | . . . . . . . . . . . . . . . . . . Weapon 106 | 2 4 . 14 13 28 2 . 10 1 5 . 2 . 11 3 7 4 Energy Gun 41 | 2 2 . 3 5 5 . . 3 . 1 . 2 . 5 3 6 4 Energy Cannon 1 | . . . . . . . . . . . . . . . . 1 . Ballistic Gun 35 | . 1 . 7 4 13 1 . 3 . 1 . . . 5 . . . Ballistic Cannon 3 | . . . . . . . . 2 . 1 . . . . . . . Launcher 6 | . 1 . 3 1 . . . . . 1 . . . . . . . Special Weapon 12 | . . . . . 9 1 . 2 . . . . . . . . . Impact Weapon 6 | . . . 1 1 1 . . . 1 1 . . . 1 . . . Slashing Weapon . | . . . . . . . . . . . . . . . . . . Piercing Weapon . | . . . . . . . . . . . . . . . . . . Special Melee Weapon 2 | . . . . 2 . . . . . . . . . . . . . Unidentified Prototypes 11 | . . . 2 . 3 . . 2 . . . 1 . 1 . . 2 Parts Lost 68 | . 1 . 6 . . . . 7 1 2 . 4 . 16 5 16 10 Power 6 | . 1 . 2 . . . . . . . . . . 1 1 . 1 Propulsion 10 | . . . 2 . . . . 2 . . . 1 . 1 1 1 2 Utility 29 | . . . 1 . . . . 1 1 1 . 2 . 10 1 8 4 Weapon 23 | . . . 1 . . . . 4 . 1 . 1 . 4 2 7 3 Highest Loss Streak 15 | . 1 . 3 . . . . 2 1 2 . 2 . 5 2 15 10 Average Slot Usage (%) 91 | . 100 100 95 100 94 84 84 88 92 91 94 93 94 87 85 79 85 Engine 6 | . 14 14 9 9 5 . . 3 6 6 5 5 5 4 5 5 4 Treads 10 | . . . 10 9 16 15 15 13 13 13 11 10 5 9 6 5 4 Wheel 6 | . 28 28 9 9 8 7 7 5 6 6 5 5 11 1 . . . Device 17 | . 8 14 11 18 15 . . 19 13 8 18 16 11 30 31 26 23 Storage 7 | . 14 14 11 9 7 7 7 6 6 6 5 5 5 5 5 5 5 Processor 4 | . 5 . . . . 6 7 3 6 6 5 5 5 5 10 14 14 Protection 6 | . . . 9 9 6 7 7 6 12 17 14 11 17 3 . . 7 Energy Gun 13 | . 20 14 15 16 13 15 15 7 13 17 17 16 17 12 6 13 14 Ballistic Gun 10 | . 3 14 15 18 13 14 15 12 6 4 5 5 5 6 13 . . Naked Turns 4 | . . . . . . . . . . . . . . . . . 4 Heaviest Build 146 | 14 34 32 41 52 73 86 84 132 130 133 136 135 135 144 131 128 146 Greatest Support 150 | 32 20 20 40 12 28 28 28 28 28 28 28 38 38 150 150 145 70 Greatest Overweight (x) 47 | . 1 1 9 5 5 3 2 27 4 4 4 4 3 47 1 1 40 Average Overweight (x) 2 | . . 1 1 4 2 2 2 2 4 4 4 3 3 . . . 1 Largest Inventory Capacity 25 | 8 15 15 15 15 20 20 20 25 25 25 25 25 25 25 25 25 25 Average Capacity 20 | 7 14 15 15 15 17 20 20 20 25 25 25 25 25 25 25 25 24 Most Carried 25 | 7 15 15 15 15 20 20 20 20 25 19 17 25 25 25 24 20 25 Average Carried 17 | 4 10 15 14 14 16 19 20 17 20 18 16 21 24 21 21 13 22 Final Capacity 25 | 8 15 15 15 15 20 20 20 25 25 25 25 25 25 25 25 25 5 Final Carried 25 | 6 15 15 15 15 20 20 20 19 19 18 17 24 25 25 20 17 5 Class Distribution -------------------- 49% | Tank 20% | Mutant 19% | Gunner 5% | Scavenger-Gunner 4% | Scavenger-Tank Dominant Class ---------------- Mutant | -10/Materials Mutant | -10/Mines Tank | -9/Materials Tank | -8/Materials Tank | -7/Factory Tank | -7/Lower Caves Tank | -7/Lower Caves Tank | -6/Factory Tank | -6/Lower Caves Tank | -6/Lower Caves Tank | -5/Factory Tank | -5/Upper Caves Scavenger-Tank | -5/Upper Caves Tank | -4/Factory Gunner | -4/Upper Caves Scavenger-Gunner | -4/Upper Caves Gunner | -4/Warlord Resources | -11 -10 -10 -9 -8 -7 -7 -7 -6 -6 -6 -5 -5 -5 -4 -4 -4 -4 ----------- Run | Scr Mat Min Mat Mat Fac Low Low Fac Low Low Fac Upp Upp Fac Upp Upp War Matter Collected 6753 | 280 188 148 704 641 1525 84 8 1064 222 86 200 296 . 758 310 204 35 Remotely 1071 | . . . . . . . . 757 . . . . . 198 52 64 . Salvage Created 9311 | 106 338 54 666 1174 1580 192 62 1646 394 84 94 445 37 1312 635 492 . Parts 443 | 11 28 2 44 82 83 1 5 54 11 3 2 16 3 68 18 12 . Haulers Intercepted 15 | . 2 . 3 3 2 . . 3 . . 1 1 . . . . . Recyclers Shooed 6 | . . 1 4 . 1 . . . . . . . . . . . . Parts Field Recycled . | . . . . . . . . . . . . . . . . . . Retrieved Matter . | . . . . . . . . . . . . . . . . . . Parts Self-Destructed 165 | . . . . . . 1 5 . 11 1 . 26 2 . 16 11 92 Prevented 20 | . . . . . . . . . . . . . . . . . 20 Kills | -11 -10 -10 -9 -8 -7 -7 -7 -6 -6 -6 -5 -5 -5 -4 -4 -4 -4 ------- Run | Scr Mat Min Mat Mat Fac Low Low Fac Low Low Fac Upp Upp Fac Upp Upp War Combat Hostiles Destroyed 146 | . 6 1 17 25 19 1 1 21 8 3 . 6 . 21 9 8 . Guns 113 | . . 1 12 24 19 1 1 13 5 2 . 4 . 18 9 4 . Cannons 14 | . . . . . . . . 8 3 . . . . . . 3 . AOE 14 | . 6 . 5 1 . . . . . 1 . . . 1 . . . Classes Destroyed 16 | 1 5 . 4 1 2 . . 1 1 . . . . 1 . . . Worker 8 | . 2 . . 1 4 . . . . . . . . 1 . . . Builder 11 | . 1 . 1 4 3 . . . . . . . . 2 . . . Tunneler 7 | 5 1 . . . . . . . . . . . . 1 . . . Hauler 15 | . 2 . 3 3 2 . . 3 . . 1 1 . . . . . Recycler 8 | . . . 1 . 5 . . 2 . . . . . . . . . Minesweeper 2 | . . . . . . . . . 1 . . . 1 . . . . Operator 2 | . . . . . . . . 1 . . . . . 1 . . . Watcher 9 | . 3 . . 3 2 . . 1 . . . . . . . . . Swarmer 30 | . . . 9 9 . . . . 3 1 . . . 5 1 2 . Grunt 60 | . 6 1 3 8 4 . . 13 4 1 . 5 . 4 7 4 . Brawler 3 | . . . . 1 . . . 2 . . . . . . . . . Duelist 2 | . . . 1 . 1 . . . . . . . . . . . . Sentry 31 | . . . 5 7 7 1 1 1 1 1 . . . 4 1 2 . Specialist 2 | . . . . . . . . . . . . . . 2 . . . Hunter 2 | . . . . . 1 . . 1 . . . . . . . . . Programmer 17 | . . . . . 6 . . 4 . . . 1 . 6 . . . Decomposer 1 | . . . . . . . . . . . . . . . . 1 . Packrat 1 | . . . . . . 1 . . . . . . . . . . . Best Kill Streak 9 | 3 9 1 5 7 6 1 1 5 3 2 1 4 1 7 6 5 . Combat Bots Only 6 | . 6 1 4 4 2 1 1 4 3 2 . 4 . 5 4 5 . Max Kills in Single Turn 3 | 1 2 1 2 3 2 1 1 1 1 1 1 1 1 2 1 1 . Gunslinging 2 | . . . . 2 . . . . . . . . . 1 . . . Exploded 2 | . 2 . 2 1 . . . . . 1 . . . 1 . . . Melee . | . . . . . . . . . . . . . . . . . . Uniques/NPCs Destroyed . | . . . . . . . . . . . . . . . . . . Combat | -11 -10 -10 -9 -8 -7 -7 -7 -6 -6 -6 -5 -5 -5 -4 -4 -4 -4 -------- Run | Scr Mat Min Mat Mat Fac Low Low Fac Low Low Fac Upp Upp Fac Upp Upp War Damage Taken 15912 | . 303 187 1149 765 1593 16 59 2255 555 473 67 514 . 3653 771 1516 2036 Core 2213 | . 93 89 154 79 182 6 . 361 15 30 . 49 . 346 155 156 498 Absorbed by Shields 582 | . . . . . . . . 58 . . . 186 . 277 . 61 . Reduced by Siege Mode 91 | . . . . . . . . . . . . . . 91 . . . Core Remaining (%) 70 | 100 . 27 61 85 . . 73 . . 52 . . 95 . . . . Volleys Fired 490 | 9 23 17 55 64 109 5 1 68 16 8 1 16 2 51 20 23 2 Largest 4 | 2 2 2 3 4 4 4 4 4 4 3 4 4 4 4 4 4 2 Hottest 330 | 100 130 85 144 174 205 205 205 222 222 218 243 243 243 268 186 330 330 Shots Fired 1514 | 18 38 34 135 247 313 14 4 237 63 18 4 60 8 178 79 61 3 Gun 1361 | 18 30 34 121 246 272 12 4 186 48 11 4 60 8 178 79 49 1 Cannon 76 | . . . . . . . . 43 15 4 . . . . . 12 2 Launcher 26 | . 8 . 14 1 . . . . . 3 . . . . . . . Special 51 | . . . . . 41 2 . 8 . . . . . . . . . Kinetic 739 | . 9 17 58 126 136 6 2 156 31 4 1 16 2 118 52 5 . Thermal 682 | 18 21 17 63 120 136 6 2 73 32 11 3 44 6 49 27 51 3 Explosive 26 | . 8 . 14 1 . . . . . 3 . . . . . . . Electromagnetic 16 | . . . . . . . . . . . . . . 11 . 5 . Robot Hit Streak 42 | 6 7 5 11 22 17 11 15 21 16 8 6 42 4 31 13 7 2 Robot Miss Streak 10 | 1 6 10 3 5 8 1 . 3 2 1 . 2 1 5 3 1 1 Penetration Max 1 | . . . . . 1 . . 1 . . . . . 1 1 . . Secondary Targets 20 | . . 1 1 5 1 . . . . . . 2 . 5 3 2 . Max Gunslinging Chain 2 | . . 1 1 2 1 . . . . . . 1 . 1 1 1 . Shots Hit Robots 1003 | 13 28 25 81 157 202 11 2 157 45 11 3 48 3 120 53 42 2 Core Hits 516 | 5 41 19 63 90 73 7 3 71 19 8 2 19 3 50 25 18 . Critical Kills 7 | . . . . 2 1 . . 1 . 1 . . . 2 . . . Critical Parts Destroyed 7 | . . . . . 1 . . 1 2 . . . . 2 1 . . Critical Strikes 38 | 1 . . 1 5 4 . . 5 3 3 . 1 . 9 2 4 . Burn 21 | 1 . . 1 3 2 . . 2 1 1 . 1 . 5 1 3 . Destroy 15 | . . . . 2 2 . . 2 2 2 . . . 4 1 . . Blast 1 | . . . . . . . . 1 . . . . . . . . . Corrupt 1 | . . . . . . . . . . . . . . . . 1 . Melee Attacks 10 | . . . . 1 2 . . . 1 . . . . 6 . . . Impact 10 | . . . . 1 2 . . . 1 . . . . 6 . . . Slashing . | . . . . . . . . . . . . . . . . . . Piercing . | . . . . . . . . . . . . . . . . . . Sneak Attacks . | . . . . . . . . . . . . . . . . . . Combat Hostiles . | . . . . . . . . . . . . . . . . . . Follow-up Attacks . | . . . . . . . . . . . . . . . . . . Damage Inflicted 20500 | 177 764 280 1896 2478 3361 241 44 3440 994 417 64 974 72 2985 1188 994 131 Guns 17414 | 177 295 280 1136 2458 3361 241 44 2605 726 186 64 974 72 2839 1188 710 58 Cannons 1540 | . . . . . . . . 835 268 80 . . . . . 284 73 Explosions 1536 | . 469 . 756 20 . . . . . 151 . . . 140 . . . Melee . | . . . . . . . . . . . . . . . . . . Ramming 10 | . . . 4 . . . . . . . . . . 6 . . . Kinetic 9325 | . 50 75 482 1109 1537 131 . 2326 419 80 . 204 . 1924 868 120 . Thermal 9652 | 177 245 205 654 1349 1824 110 44 1114 575 186 64 770 72 1019 320 793 131 Explosive 1351 | . 424 . 756 20 . . . . . 151 . . . . . . . Electromagnetic 162 | . 45 . . . . . . . . . . . . 36 . 81 . Impact . | . . . . . . . . . . . . . . . . . . Slashing . | . . . . . . . . . . . . . . . . . . Piercing . | . . . . . . . . . . . . . . . . . . Highest Corruption 12 | . . . . . 3 . . 3 4 4 . . . 12 12 12 12 Average Corruption 6 | . . . . . 1 . . 2 3 4 . . . 7 12 12 11 Corruption Purged 11 | . . . . . 6 . . . . . . . . 5 . . . Effects 129 | . . . . . 6 . . 17 25 3 . . . 16 13 47 2 Message Errors 36 | . . . . . 1 . . 6 8 1 . . . 5 4 10 1 Matter Fused 35 | . . . . . . . . 2 10 . . . . 6 5 12 . Heat Flow Errors 18 | . . . . . 1 . . 4 4 . . . . 2 . 7 . Energy Discharges 16 | . . . . . 1 . . 2 1 . . . . 1 2 9 . Parts Rejected 1 | . . . . . . . . . . 1 . . . . . . . Data Loss (minor) 14 | . . . . . 3 . . 2 1 1 . . . 1 . 5 1 Data Loss (major) 2 | . . . . . . . . . . . . . . . 1 1 . Misfires 1 | . . . . . . . . . . . . . . . . 1 . Alerts 1 | . . . . . . . . . . . . . . . . 1 . Weapon Failures 5 | . . . . . . . . 1 1 . . . . 1 1 1 . Overload Shots 1 | . . . . . . . . . . . . . . . . . 1 Overflow Damage 41 | . . . 5 . . . . . . 26 . . . 10 . . . Projectiles . | . . . . . . . . . . . . . . . . . . Explosions 41 | . . . 5 . . . . . . 26 . . . 10 . . . Melee . | . . . . . . . . . . . . . . . . . . Knockbacks 14 | . . . . . . . . 12 2 . . . . . . . . Impact . | . . . . . . . . . . . . . . . . . . Kinetic 12 | . . . . . . . . 10 2 . . . . . . . . Secondary 2 | . . . . . . . . 2 . . . . . . . . . Self-Inflicted Damage 397 | . 151 . 88 25 . . . . . . 67 . . 66 . . . Shots 12 | . 6 . 3 1 . . . . . . 1 . . 1 . . . Rammed 3 | . . . 1 . . . . . . . . . . 2 . . . Targets Rammed 3 | . . . 1 . . . . . . . . . . 2 . . . Kicked . | . . . . . . . . . . . . . . . . . . Crushed . | . . . . . . . . . . . . . . . . . . Highest Temperature 1067 | 117 252 253 280 322 224 156 158 1067 234 228 51 99 220 396 75 197 45 Average Temperature 97 | 48 81 72 62 75 56 77 78 228 77 111 34 31 117 172 33 85 14 Received Heat Transfer 3442 | . 90 123 225 333 408 . 18 727 186 153 . 144 . 159 190 308 378 Effects 39 | . 1 . . 1 . . . 36 . . . . . 1 . . . Shutdowns 8 | . . . . . . . . 8 . . . . . . . . . Energy Bleed 3 | . 1 . . 1 . . . 1 . . . . . . . . . Interference 8 | . . . . . . . . 8 . . . . . . . . . Matter Decay 1 | . . . . . . . . 1 . . . . . . . . . Short Circuit 3 | . . . . . . . . 2 . . . . . 1 . . . Damage (minor) 5 | . . . . . . . . 5 . . . . . . . . . Damage (major) 9 | . . . . . . . . 9 . . . . . . . . . Damage (core) 2 | . . . . . . . . 2 . . . . . . . . . Siege Activations 1 | . . . . . . . . . . . . . . 1 . . . Total Turns 30 | . . . . . . . . . . . . . . 30 . . . Longest Duration 30 | . . . . . . . . . . . . . . 30 . . . Robots Corrupted 1 | . . . . . . . . . . . . . . . . 1 . Combat Hostiles 1 | . . . . . . . . . . . . . . . . 1 . Parts Fried 3 | . . . . . . . . . 1 . . . . . . 2 . Impact Corruptions . | . . . . . . . . . . . . . . . . . . Robots Melted 4 | . . . . . . . . . . . . 2 . 2 . . . Combat Hostiles 4 | . . . . . . . . . . . . 2 . 2 . . . Parts Melted 58 | 1 . . 2 3 16 . 1 2 2 1 1 7 2 14 3 3 . Heat Transferred 19421 | 592 305 255 1349 2716 3788 237 87 2252 1073 370 111 1649 149 1987 777 1662 62 Parts Sabotaged 6 | . . . . . . . . . . . . . . . . . 6 Parts Stolen . | . . . . . . . . . . . . . . . . . . Parts Stripped . | . . . . . . . . . . . . . . . . . . Power Chain Reactions 2 | . 2 . . . . . . . . . . . . . . . . Missiles Intercepted . | . . . . . . . . . . . . . . . . . . Alert | -11 -10 -10 -9 -8 -7 -7 -7 -6 -6 -6 -5 -5 -5 -4 -4 -4 -4 ------- Run | Scr Mat Min Mat Mat Fac Low Low Fac Low Low Fac Upp Upp Fac Upp Upp War Peak Influence 610 | 25 280 130 465 357 445 . . 197 . . 63 . . 610 . . . Initial 129 | . 16 14 50 122 129 . . 22 . . 25 . . 2 . . . Average 167 | 9 87 36 278 214 186 . . 75 . . 46 . . 107 . . . Maximum Alert Level 2 | . 1 . 2 1 2 . . . . . . . . 2 . . . Low Security (%) 61 | 100 79 100 18 39 60 . . 100 . . 100 . . 83 . . . Level 1 35 | . 20 . 72 60 36 . . . . . . . . 15 . . . Level 2 2 | . . . 8 . 3 . . . . . . . . . . . . Level 3 . | . . . . . . . . . . . . . . . . . . Level 4 . | . . . . . . . . . . . . . . . . . . Level 5 . | . . . . . . . . . . . . . . . . . . High Security . | . . . . . . . . . . . . . . . . . . Max Security . | . . . . . . . . . . . . . . . . . . Squads Dispatched 23 | . 1 . 2 1 7 . . 6 . . 1 . . 5 . . . Investigation 2 | . . . 1 . . . . . . . 1 . . . . . . Extermination 10 | . . . . . 5 . . 3 . . . . . 2 . . . Reinforcement 10 | . 1 . 1 1 2 . . 3 . . . . . 2 . . . Assault . | . . . . . . . . . . . . . . . . . . Garrison 1 | . . . . . . . . . . . . . . 1 . . . Intercept . | . . . . . . . . . . . . . . . . . . Construction Impeded . | . . . . . . . . . . . . . . . . . . Haulers Reinforced 2 | . . . . . . . . 2 . . . . . . . . . Active Scanning Responses . | . . . . . . . . . . . . . . . . . . Cargo Convoy Interrupts . | . . . . . . . . . . . . . . . . . . Stealth | -11 -10 -10 -9 -8 -7 -7 -7 -6 -6 -6 -5 -5 -5 -4 -4 -4 -4 --------- Run | Scr Mat Min Mat Mat Fac Low Low Fac Low Low Fac Upp Upp Fac Upp Upp War Distress Signals 11 | . 1 . 1 4 . . . 4 . . . . . 1 . . . Communications Jammed 42 | . . . 10 10 16 . . 5 . . 1 . . . . . . Distress Signals 38 | . . . 10 7 16 . . 5 . . . . . . . . . Times Spotted 279 | . 13 6 41 46 39 1 1 33 8 3 . 7 . 34 11 9 27 Peak Tracking Total 23 | . 7 2 6 6 4 1 1 5 3 3 . 2 . 6 4 7 23 Tactical Retreats 10 | . . . 3 2 1 . . . . . . . . 2 1 1 . Traps | -11 -10 -10 -9 -8 -7 -7 -7 -6 -6 -6 -5 -5 -5 -4 -4 -4 -4 ------- Run | Scr Mat Min Mat Mat Fac Low Low Fac Low Low Fac Upp Upp Fac Upp Upp War Traps Triggered 5 | . . . . . 2 . . 2 . . . . . 1 . . . Indirectly . | . . . . . . . . . . . . . . . . . . Trap Hack Attempts 36 | . . . . 36 . . . . . . . . . . . . . Triggered . | . . . . . . . . . . . . . . . . . . Disarmed 1 | . . . . 1 . . . . . . . . . . . . . Reprogrammed 4 | . . . . 4 . . . . . . . . . . . . . Reused 3 | . . . . 1 . . . . 1 . . . . 1 . . . Traps Extracted . | . . . . . . . . . . . . . . . . . . Installed 14 | . . . . . . . . . 7 . . . 5 2 . . . Triggered 21 | . . . . 1 . . . . 1 . . . . 1 . . 18 Machines | -11 -10 -10 -9 -8 -7 -7 -7 -6 -6 -6 -5 -5 -5 -4 -4 -4 -4 ---------- Run | Scr Mat Min Mat Mat Fac Low Low Fac Low Low Fac Upp Upp Fac Upp Upp War Machines Disabled 20 | . 4 . 1 2 2 . . 3 . . 1 . . 5 . 2 . Max in Single Turn 4 | . 2 . 1 1 1 . . 1 . . 1 . . 4 . 1 . Garrison Access 2 | . . . . . . . . 1 . . . . . 1 . . . Machines Sabotaged . | . . . . . . . . . . . . . . . . . . Garrisons Compromised . | . . . . . . . . . . . . . . . . . . Overloaded Fab Kills . | . . . . . . . . . . . . . . . . . . Hacking | -11 -10 -10 -9 -8 -7 -7 -7 -6 -6 -6 -5 -5 -5 -4 -4 -4 -4 --------- Run | Scr Mat Min Mat Mat Fac Low Low Fac Low Low Fac Upp Upp Fac Upp Upp War Machines Accessed 46 | . 6 . 6 11 8 . . 5 . . 1 . . 4 . 1 4 Terminals 32 | . 6 . 6 10 5 . . 3 . . . . . 2 . . . Fabricators . | . . . . . . . . . . . . . . . . . . Repair Stations 4 | . . . . 1 2 . . 1 . . . . . . . . . Recycling Units 1 | . . . . . 1 . . . . . . . . . . . . Scanalyzers 1 | . . . . . . . . . . . . . . 1 . . . Garrison Access 3 | . . . . . . . . 1 . . 1 . . 1 . . . Total Hacks 105 | . 22 . 16 21 14 . . 14 . . 3 . . 6 . 1 8 Successful 54 | . 12 . 6 8 7 . . 7 . . . . . 5 . 1 8 Failed 51 | . 10 . 10 13 7 . . 7 . . 3 . . 1 . . . Catastrophic 10 | . 1 . 1 4 . . . 2 . . 1 . . 1 . . . Database Lockouts . | . . . . . . . . . . . . . . . . . . Manual 66 | . 21 . 19 16 7 . . 1 . . . . . 2 . . . Terminals 76 | . 22 . 16 19 8 . . 8 . . . . . 3 . . . Fabricators . | . . . . . . . . . . . . . . . . . . Repair Stations 10 | . . . . 2 4 . . 4 . . . . . . . . . Recycling Units 2 | . . . . . 2 . . . . . . . . . . . . Scanalyzers 2 | . . . . . . . . . . . . . . 2 . . . Garrison Access 6 | . . . . . . . . 2 . . 3 . . 1 . . . Terminal Hacks 36 | . 7 . 4 7 3 . . 4 . . . . . 2 . 1 8 Record 10 | . . . . 1 . . . 1 . . . . . 1 . . 7 Robot Analysis 6 | . 2 . 3 . 1 . . . . . . . . . . . . Open Door 2 | . . . . . . . . . . . . . . . . 1 1 Branch Access Points 1 | . . . . 1 . . . . . . . . . . . . . Emergency Access Points 1 | . . . . . . . . 1 . . . . . . . . . Unreport Threat 6 | . 1 . 1 2 1 . . 1 . . . . . . . . . Locate Traps 9 | . 3 . . 3 1 . . 1 . . . . . 1 . . . Recall Reinforcements 1 | . 1 . . . . . . . . . . . . . . . . Fabricator Hacks . | . . . . . . . . . . . . . . . . . . Repair Station Hacks 7 | . . . . 1 4 . . 2 . . . . . . . . . Scan Component 4 | . . . . 1 2 . . 1 . . . . . . . . . Repair 3 | . . . . . 2 . . 1 . . . . . . . . . Recycling Unit Hacks . | . . . . . . . . . . . . . . . . . . Scanalyzer 2 | . . . . . . . . . . . . . . 2 . . . Insert Component 1 | . . . . . . . . . . . . . . 1 . . . Analyze 1 | . . . . . . . . . . . . . . 1 . . . Garrison Access Hacks 2 | . . . . . . . . 1 . . . . . 1 . . . Seal Access 2 | . . . . . . . . 1 . . . . . 1 . . . Unauthorized Hacks 7 | . 5 . 2 . . . . . . . . . . . . . . Terminals 7 | . 5 . 2 . . . . . . . . . . . . . . Track 4 | . 2 . 2 . . . . . . . . . . . . . . Botnet 3 | . 3 . . . . . . . . . . . . . . . . Fabricators . | . . . . . . . . . . . . . . . . . . Repair Stations . | . . . . . . . . . . . . . . . . . . Recycling Units . | . . . . . . . . . . . . . . . . . . Scanalyzers . | . . . . . . . . . . . . . . . . . . Garrison Access . | . . . . . . . . . . . . . . . . . . Data Cores Recovered 2 | . . . . . . . . 1 . . . . . 1 . . . Used 1 | . . . . . . . . 1 . . . . . . . . . Hacking Detections 40 | . 6 . 6 11 8 . . 5 . . 1 . . 3 . . . Full Trace Events 2 | . . . 1 . . . . . . . 1 . . . . . . Feedback Events . | . . . . . . . . . . . . . . . . . . Feedback Blocked . | . . . . . . . . . . . . . . . . . . Robot Schematics Acquired . | . . . . . . . . . . . . . . . . . . Robots Built . | . . . . . . . . . . . . . . . . . . Authchips . | . . . . . . . . . . . . . . . . . . Time . | . . . . . . . . . . . . . . . . . . Total Robot Build Rating . | . . . . . . . . . . . . . . . . . . Part Schematics Acquired 1 | . . . . . . . . . . . . . . 1 . . . Parts Built . | . . . . . . . . . . . . . . . . . . Authchips . | . . . . . . . . . . . . . . . . . . Time . | . . . . . . . . . . . . . . . . . . Total Part Build Rating . | . . . . . . . . . . . . . . . . . . Parts Repaired 3 | . . . . . 2 . . 1 . . . . . . . . . Time 120 | . . . . . 76 . . 44 . . . . . . . . . Parts Recycled . | . . . . . . . . . . . . . . . . . . Recycled Matter . | . . . . . . . . . . . . . . . . . . Retrieved Matter . | . . . . . . . . . . . . . . . . . . Retrieved Components . | . . . . . . . . . . . . . . . . . . Parts Scanalyzed 1 | . . . . . . . . . . . . . . 1 . . . Part Schematics Acquired 1 | . . . . . . . . . . . . . . 1 . . . Parts Damaged . | . . . . . . . . . . . . . . . . . . Bothacking | -11 -10 -10 -9 -8 -7 -7 -7 -6 -6 -6 -5 -5 -5 -4 -4 -4 -4 ------------ Run | Scr Mat Min Mat Mat Fac Low Low Fac Low Low Fac Upp Upp Fac Upp Upp War Used RIF Installer . | . . . . . . . . . . . . . . . . . . Robots Hacked 28 | . . . . . 25 1 . 2 . . . . . . . . . Non-combat 28 | . . . . . 25 1 . 2 . . . . . . . . . Combat . | . . . . . . . . . . . . . . . . . . Robot Hacks Applied 36 | . . . . . 33 1 . 2 . . . . . . . . . parse_system 3 | . . . . . 2 1 . . . . . . . . . . . no_distress 6 | . . . . . 6 . . . . . . . . . . . . find_chute 25 | . . . . . 23 . . 2 . . . . . . . . . find_recycling 2 | . . . . . 2 . . . . . . . . . . . . Relay Couplers Released 1 | . . . . . . . . . . . . . . 1 . . . Machine Destruction 1 | . . . . . . . . . . . . . . 1 . . . Fabnet Peak Effective % . | . . . . . . . . . . . . . . . . . . Robots Rewired 2 | . . . . . . . . . . . . . . . . . 2 Allies Hacked . | . . . . . . . . . . . . . . . . . . Hacks Repelled . | . . . . . . . . . . . . . . . . . . Allies | -11 -10 -10 -9 -8 -7 -7 -7 -6 -6 -6 -5 -5 -5 -4 -4 -4 -4 -------- Run | Scr Mat Min Mat Mat Fac Low Low Fac Low Low Fac Upp Upp Fac Upp Upp War Total Allies 5 | . . 3 . . . . . . . . . . . . . . 2 Largest Group 3 | . . 3 3 . . . . . . . . . . . . . 2 Highest-Rated Group 112 | . . 40 40 . . . . . . . . . . . . . 112 Highest-Rated Ally 56 | . . 16 16 . . . . . . . . . . . . . 56 Total Orders 5 | . . . . . . . . . . . . . . 5 . . . EXPLORE 3 | . . . . . . . . . . . . . . 3 . . . RETURN 2 | . . . . . . . . . . . . . . 2 . . . Ally Attacks 81 | . . 13 57 . . . . . . . . . . . . . 11 Total Damage 1337 | . . 139 640 . . . . . . . . . . . . . 558 Kills 18 | . . 3 13 . . . . . . . . . . . . . 2 Allies Corrupted . | . . . . . . . . . . . . . . . . . . Allies Melted 3 | . . . . . . . . . . . . . . . . . 3 Intel | -11 -10 -10 -9 -8 -7 -7 -7 -6 -6 -6 -5 -5 -5 -4 -4 -4 -4 ------- Run | Scr Mat Min Mat Mat Fac Low Low Fac Low Low Fac Upp Upp Fac Upp Upp War Robot Analysis Total 6 | . 2 . 3 . 1 . . . . . . . . . . . . Derelict Logs Recovered 7 | . . . . . . . . . 1 1 . 2 . . 1 2 . Drone Launches 5 | . . . . . . . . . . . . . . 5 . . . Drone Recoveries 3 | . . . . . . . . . . . . . . 3 . . . Exploration | -11 -10 -10 -9 -8 -7 -7 -7 -6 -6 -6 -5 -5 -5 -4 -4 -4 -4 ------------- Run | Scr Mat Min Mat Mat Fac Low Low Fac Low Low Fac Upp Upp Fac Upp Upp War Turns Passed 17584 | 129 508 356 1824 1700 3208 680 258 1595 1488 118 150 569 116 1116 835 1225 1709 Spaces Moved 8995 | 89 433 319 646 827 1909 489 183 817 877 49 87 307 75 476 355 457 600 Core 44 | 7 . . 24 . . . . 1 . . . . . 1 . . 11 Treads 2194 | . . . 542 . . . . . . . . . . 385 355 457 455 Legs 134 | . . . . . . . . . . . . . . . . . 134 Wheels 6623 | 82 433 319 80 827 1909 489 183 816 877 49 87 307 75 90 . . . Hover . | . . . . . . . . . . . . . . . . . . Flight . | . . . . . . . . . . . . . . . . . . Fastest Speed 50 | 50 80 95 95 135 110 130 130 130 160 160 160 135 135 135 160 160 50 Average Speed 160 | 87 92 95 238 147 126 130 130 143 160 160 160 157 135 162 208 227 270 Slowest Speed 2400 | 100 95 95 500 155 155 145 130 1400 160 160 160 160 135 2400 240 240 2050 Overloaded Moves . | . . . . . . . . . . . . . . . . . . Propulsion Burnouts . | . . . . . . . . . . . . . . . . . . Robots Hopped . | . . . . . . . . . . . . . . . . . . Cave-ins Triggered 1 | . . . . . . . . . . . . . . 1 . . . Exploration Rate (%) 47 | 4 88 69 67 75 52 66 19 28 91 11 3 51 20 14 65 61 77 Regions Visited 17 Branch Regions 10 Pre-discovered Areas 1 | . . . . . . . . . . . . 1 . . . . . Known Exits Taken 1 | . . . . . . . . . . . 1 . . . . . . Unknown Exits Taken 16 | 1 1 1 1 1 1 1 1 1 1 1 . 1 1 1 1 1 . Scrap Searched 27 | . . 1 . . . 12 1 . 6 . . 3 . . 3 1 . Spaces Dug 27 | . 18 . . 1 2 . . . 1 . . . . 5 . . . Terrain Destroyed 289 | . 38 . 106 8 7 . . 13 7 12 7 . . 85 3 3 . Melee 9 | . . . . 1 2 . . . 1 . . . . 5 . . . Projectile 39 | . . . . . 5 . . 13 6 . . . . 9 3 3 . AOE 238 | . 38 . 106 7 . . . . . 12 7 . . 68 . . . Terrain Rammed . | . . . . . . . . . . . . . . . . . . Walls Destroyed . | . . . . . . . . . . . . . . . . . . Machines Disabled . | . . . . . . . . . . . . . . . . . . Actions | -11 -10 -10 -9 -8 -7 -7 -7 -6 -6 -6 -5 -5 -5 -4 -4 -4 -4 --------- Run | Scr Mat Min Mat Mat Fac Low Low Fac Low Low Fac Upp Upp Fac Upp Upp War Total 11189 | 118 507 342 828 1165 2503 522 200 1101 928 73 96 354 86 687 400 595 684 Wait 1058 | 5 19 3 64 182 370 21 17 150 10 9 1 14 . 77 16 92 8 Move 8978 | 88 432 318 645 826 1908 488 182 816 876 48 86 306 74 475 354 456 600 Hop . | . . . . . . . . . . . . . . . . . . Pick Up 133 | 6 12 1 13 10 20 2 . 13 7 2 2 9 3 16 . 9 8 Fast Attach 61 | 6 1 1 10 . 14 . . 4 . . 1 . . 14 . 3 7 Attach 74 | 1 1 . 4 2 5 1 . 11 1 3 2 4 . 16 5 12 6 Detach 8 | . . . 1 . 1 . . 1 . . . . . 3 . . 2 Swap 134 | 2 9 . 14 22 36 3 . 23 3 3 1 5 . 9 3 . 1 Drop 146 | 1 10 2 21 22 38 2 . 15 7 . 2 . 2 16 2 . 6 Fire 490 | 9 23 17 55 64 109 5 1 68 16 8 1 16 2 51 20 23 2 Melee 10 | . . . . 1 2 . . . 1 . . . . 6 . . . Ram . | . . . . . . . . . . . . . . . . . . Kick . | . . . . . . . . . . . . . . . . . . Crush 3 | . . . 1 . . . . . . . . . . 2 . . . Escape Stasis . | . . . . . . . . . . . . . . . . . . Rewire 44 | . . . . . . . . . . . . . . . . . 44 Trap 50 | . . . . 36 . . . . 7 . . . 5 2 . . . Miscellaneous . | . . . . . . . . . . . . . . . . . . Route ------- -11/Scrapyard -10/Materials (discovered 3 exits: *Mat / [*Min x2]) -10/Mines -9/Materials (discovered 3 exits: *Mat x2 / [*Min]) -8/Materials (discovered 3 exits: *Fac x2 / *Sto) -7/Factory (discovered 3 exits: *Fac x2 / [*Low]) -7/Lower Caves -7/Lower Caves -6/Factory (discovered 2 exits: *Fac / [*Low]) -6/Lower Caves -6/Lower Caves -5/Factory (discovered 2 exits: *Upp x2) -5/Upper Caves -5/Upper Caves -4/Factory -4/Upper Caves -4/Upper Caves -4/Warlord (discovered 1 exit: [*Pro]) History --------- Turn | Location | Event 24 | -11/Scrapyard | Discovered new exit (range 15) 130 | -11/Scrapyard | Entered Materials 250 | -10/Materials | Discovered new exit (range 3) 313 | -10/Materials | Build established: Mutant 326 | -10/Materials | Discovered new exit (range 14) 594 | -10/Materials | Discovered new exit (range 15) 638 | -10/Materials | Entered Mines 648 | -10/Mines | Met a Derelict bent on vengeance 704 | -10/Mines | Assisted by bots powering up and referring to "LRC-V3" 800 | -10/Mines | Discovered new exit (range 6) 869 | -10/Mines | Core integrity fell below 50% 994 | -10/Mines | Entered Materials 994 | -9/Materials | Accompanied by 3 allies 994 | -9/Materials | Evolved 2 slots: Utility x1, Weapon x1 1006 | -9/Materials | Discovered new exit (range 10) 1058 | -9/Materials | Lost 3 parts (1p2n) 1879 | -9/Materials | Build established: Tank 2278 | -9/Materials | Discovered new exit (range 14) 2308 | -9/Materials | Build established: Scavenger-Tank 2666 | -9/Materials | Discovered new exit (range 15) 2818 | -9/Materials | Entered another Materials area 2818 | -8/Materials | Evolved 2 slots: Utility x1, Weapon x1 2843 | -8/Materials | Discovered new exit (range 16) 3123 | -8/Materials | Identified exit to Storage 3361 | -8/Materials | Build established: Tank 4098 | -8/Materials | Discovered new exit (range 8) 4491 | -8/Materials | Discovered new exit (range 14) 4518 | -8/Materials | Entered Factory 4518 | -7/Factory | Evolved 2 slots: Propulsion x2 5247 | -7/Factory | Discovered new exit (range 16) 5311 | -7/Factory | Repaired Adv. Treads 5370 | -7/Factory | Build established: Mutant 6126 | -7/Factory | Discovered new exit (range 12) 6430 | -7/Factory | Build established: Tank 7398 | -7/Factory | Repaired Adv. Treads 7552 | -7/Factory | Build established: Mutant 7594 | -7/Factory | Discovered new exit (range 10) 7726 | -7/Factory | Entered Lower Caves 7904 | -7/Lower Caves | Build established: Tank 8037 | -7/Lower Caves | Spotted B-75 Beast 8210 | -7/Lower Caves | Attracted the attention of an 0b10 checkpoint 8235 | -7/Lower Caves | Discovered new exit (range 15) 8406 | -7/Lower Caves | Entered another Lower Caves area 8430 | -7/Lower Caves | Discovered new exit (range 5) 8491 | -7/Lower Caves | Spotted B-75 Beast 8560 | -7/Lower Caves | Attracted the attention of an 0b10 checkpoint 8664 | -7/Lower Caves | Entered Factory 8664 | -6/Factory | Evolved 2 slots: Utility x2 8750 | -6/Factory | Repaired Arm. Huge Wheel 9549 | -6/Factory | Discovered new exit (range 8) 9719 | -6/Factory | Build established: Gunner 10029 | -6/Factory | Build established: Tank 10226 | -6/Factory | Discovered new exit (range 9) 10259 | -6/Factory | Entered Lower Caves 10261 | -6/Lower Caves | Attracted the attention of an 0b10 checkpoint 10847 | -6/Lower Caves | Learned Factory stockpile data 11025 | -6/Lower Caves | Encountered a Warlord checkpoint 11026 | -6/Lower Caves | Discovered new exit (range 14) 11747 | -6/Lower Caves | Entered another Lower Caves area 11757 | -6/Lower Caves | Attracted the attention of an 0b10 checkpoint 11854 | -6/Lower Caves | Discovered new exit (range 5) 11865 | -6/Lower Caves | Entered Factory 11865 | -5/Factory | Evolved 2 slots: Utility x2 11866 | -5/Factory | Identified exit to Upper Caves 12007 | -5/Factory | Discovered exit to Upper Caves (range 6) 12015 | -5/Factory | Entered Upper Caves 12030 | -5/Upper Caves | Learned Factory emergency access door positions 12518 | -5/Upper Caves | Spotted B-75 Beast 12572 | -5/Upper Caves | Discovered new exit (range 10) 12584 | -5/Upper Caves | Entered another Upper Caves area 12685 | -5/Upper Caves | Discovered new exit (range 9) 12700 | -5/Upper Caves | Entered Factory 12700 | -4/Factory | Evolved 2 slots: Utility x2 13136 | -4/Factory | Lost 5 parts (1p2u2w) 13387 | -4/Factory | Crushed by falling debris 13387 | -4/Factory | System corruption reached 10% 13565 | -4/Factory | Garrison activated, responded to threat 13571 | -4/Factory | Lost 3 parts (2u1w) 13627 | -4/Factory | Lost 3 parts (1n2u) 13763 | -4/Factory | Discovered new exit (range 17) 13816 | -4/Factory | Entered Upper Caves 13825 | -4/Upper Caves | Attracted the attention of an 0b10 checkpoint 13848 | -4/Upper Caves | Build established: Gunner 14230 | -4/Upper Caves | Learned Research stockpile data 14567 | -4/Upper Caves | Discovered new exit (range 14) 14651 | -4/Upper Caves | Entered another Upper Caves area 14656 | -4/Upper Caves | Encountered a Warlord checkpoint 14744 | -4/Upper Caves | Learned Research security intel 14763 | -4/Upper Caves | Attracted the attention of an 0b10 base 14810 | -4/Upper Caves | Core integrity fell below 50% 14847 | -4/Upper Caves | Lost 15 parts (1n7u7w) 15379 | -4/Upper Caves | Build established: Scavenger-Gunner 15421 | -4/Upper Caves | Learned 4 Research zone layouts 15727 | -4/Upper Caves | Attracted the attention of an 0b10 checkpoint 15728 | -4/Upper Caves | Discovered new exit (range 5) 15876 | -4/Upper Caves | Entered Warlord 15960 | -4/Warlord | System corruption cleaned by Quarantine Array 16037 | -4/Warlord | Build established: Gunner 16465 | -4/Warlord | Visited the Vortex Lab 16471 | -4/Warlord | Warlord's base attacked by MAIN.C 16511 | -4/Warlord | Found Prototype Energy Gun 16511 | -4/Warlord | Identified Vortex Rail 16515 | -4/Warlord | Found Vortex Rail 16526 | -4/Warlord | Found Prototype Energy Cannon 16821 | -4/Warlord | Warlord forces counterattacked 17076 | -4/Warlord | Met Warlord 17146 | -4/Warlord | Warlord base infiltrated, sounded retreat 17478 | -4/Warlord | Build established: Scavenger-Gunner 17573 | -4/Warlord | Spotted Striker 17575 | -4/Warlord | Spotted Striker 17579 | -4/Warlord | Spotted Executioner 17581 | -4/Warlord | Released all parts (8) 17584 | -4/Warlord | Core integrity fell below 20% 17585 | -4/Warlord | Discovered new exit (range 15) 17585 | -4/Warlord | Destroyed by Striker with Compact Linear Accelerator Last Messages --------------- 17576_ Knocked back. 17578_ Enh. Flexi-carbon Leg destroyed. 17578_ Imp. Medium Armor Plating destroyed. 17578_ Knocked back. 17579_ Adv. Cooling System destroyed. 17580_ Variable Charge Gun destroyed. 17581_ Released Adv. Coolant Injector. 17581_ Released Lgt. Antimatter Reactor. 17581_ Released Enh. Flexi-carbon Leg. 17581_ Released Adv. Target Analyzer. 17581_ Released Adv. Coolant Injector. 17581_ Released Enh. Optical Array. 17581_ Released Huge Storage Unit. 17581_ Released Adv. Armor Integrity Analyzer. 17584_ Acquired 3 matter. 17585_ Slug penetrates G-67 Veteran. 17585_ Acquired 6 matter. 17585_ Acquired 8 matter. 17585_ EXIT=FOUND [Achievement: I Think I Know What's Going On] Map ----- +----------------------------------------------------+ | ??????????????????????????????????? | | ??????????????????????????????????? | | #?????????????????????????????????? | | #?????????????????????????????????? | | #?????????????????????????????????? | | #?????????????????????????????????? | | #?????????????????????????????????? | | #?????????????????????????????????? | | #?????????????????????????????????? | | #?????????????????????????????????? | | #?????????????????????????????????? | | #???????????????????????? d????? | | #???????????????????????? =???? | | #??????????????????????? % % = ?#? | | #???????????? ?????????? =% i? d#? | | ?????????????? ?????#??? %%? # ?? | | ??????????????? ???? ??? %%=# ##? | | ???????????????# ???# ###%%b# ?? | | ???????????????# ###; ?%%b #; ??? | | ???????????????# ?!%!b ;##?? | | ????????????????# # =?#= g ##? | | "???????????????# %%?# E #? | | "#?????????????# # %%## g #? | | "#?????????????# !%%# ; #?? | | "#?????????????# %%!= glg #?? | | "#??????????????????#% = @ = K ##? | | "#####?????????????# # [ ; #? | | " "#############?# [ #?? | | " """"""""""""## # ##?? | | " """"""""""""## # [ ;#??? | | ^ % %% ### # !%=gggg #??? | | %/ [ p ! %%/[##?? | | =/p=% ]*]=!#?? | | p; # #%[!!# #? | | " """"""""""" ## ##!%!!###? | | " """"""""""""## #]![[^%#?? | | " "############# # # #|#[=*#?? | | "#####???????????#### ### ![%!%#?? | | "#????????????????## ### !]/*!#?? | | "#????????????????# ### [/##?? | | "#???????????????## ##?# #??? | | "#???????????????# #??## ##??? | | "#???????????????# ????## #???? | | ?????????????????# #?????# #???? | | ?????????????????# #?????## ##??? | | ????????????????## ##????## #??? | | ???????????????## ##??## #??? | | ???????????????# ##?# ^ #??? | | ???????????##### ## ### #??? | | ??????????## # #### ## #??? | +----------------------------------------------------+ Best States ------------- Heat Dissipation 143 Coolant Potential 200 Energy Generation 23 Energy Capacity 500 Matter Stores 300 Matter Capacity 400 Sight Range 22 Robot Scan Range 14 Terrain Scan Range 24 Terrain Scan Density 60 Jamming Range 8 Cloak Strength 3 Power Amplification 30 Corruption Prevention 20 Armor Coverage 675 Resistance: TH 30 Resistance: EM 20 Propulsion Shielding 66 Utility Shielding 66 Evasion (%) 44 Targeting Accuracy 8 Target Analysis 8 Armor Integrity Analysis 40 Recoil Reduction 4 Matter Filtering 30 Particle Charging 20 Kinecelleration 30 Offensive Hacking 10 Item Schematics ----------------- Imp. Heavy Treads | -4/Factory | Scanalyzed Robot Schematics ------------------ None Fabricated ------------ Nothing Alien Tech Used ----------------- None Achievements -------------- A New Friend Hehehe I Think I Know What's Going On Challenges ------------ None Game ------ Seed CompactShockClaws Manual? 0 Play Time 04:33:04 Cumulative 114.3 hours Start 2021.12.03 @ 20:12:10 End 2021.12.04 @ 16:24:24 Sessions 5 Manual Loads 0 Difficulty Rogue Special Mode None Game No. 72 Rogue 68 Adventurer 3 Explorer 1 Win Type - Total 1 Types 1/0/0/0/0/0/0/0/0 Lore% 50 Gallery% 44 Achievement% 41 Wizard Run 0 Options --------- ASCII 0 Keyboard 0 Movement Mouse Keybinds 1 Fullscreen 1 Font 18/TerminusBold Map View 76x50 Tactical HUD 1 Map Filters NONE Filters NONE Steam 1 RUN: 5db9bc96-b401-4949-97f4-4b62b09b1931